Cogmind - Beta 13 @@@ ROGUE MODE // 2024.04.12 @ 23:45:36 Player: Michael Result: Smashed by cave-in Performance ------------- Evolutions (0) 0 Regions Visited (2) 400 Robots Destroyed (34) 170 Value Destroyed (533) 533 Prototype IDs (0) 0 Alien Tech Used (0) 0 Bonus (0) 0 TOTAL SCORE: 1103 Bonus ------- None Cogmind --------- Core Integrity 0/250 Matter 179/300 Energy 98/100 System Corruption 4% Temperature Cool (1) Movement Core (50) Location -10/Mines Parts ------- > --- POWER (1) -------- (None) > --- PROPULSION (2) --- (None) > --- UTILITY (2) ------ (None) > --- WEAPON (2) ------- (None) > --- INVENTORY (5) ---- Light Treads Flight Unit High-capacity Matter Pod (68) Terrain Scanner Light Assault Rifle Peak State ------------ > --- POWER ------------ Light Ion Engine > --- PROPULSION ------- Wheel Wheel > --- UTILITY ---------- Medium Matter Pod High-capacity Matter Pod > --- WEAPON ----------- Assault Rifle Grenade Launcher > --- INVENTORY -------- Light Ion Engine Aluminum Leg Aluminum Leg EM Pulse Gun Medium Laser [Rating: 7] Favorites ----------- Power Light Ion Engine Engine Light Ion Engine Propulsion Wheel Treads Light Treads Leg Aluminum Leg Wheel Wheel Flight Unit Flight Unit Utility Terrain Scanner Device Terrain Scanner Storage High-capacity Storage Unit Weapon Assault Rifle Energy Gun Medium Laser Ballistic Gun Assault Rifle Launcher Grenade Launcher Build | -11 -10 -10 ------- Run | Yrd Mat Min Slots Evolved . | . . . Power . | . . . Propulsion . | . . . Utility . | . . . Weapon . | . . . Parts Attached 29 | 7 22 . Power 5 | 1 4 . Engine 5 | 1 4 . Core . | . . . Reactor . | . . . Propulsion 12 | 4 8 . Treads 1 | . 1 . Leg 4 | 2 2 . Wheel 3 | 2 1 . Hover . | . . . Flight 4 | . 4 . Utility 5 | . 5 . Device 2 | . 2 . Storage 3 | . 3 . Processor . | . . . Hackware . | . . . Protection . | . . . Artifact . | . . . Weapon 7 | 2 5 . Energy Gun 3 | 1 2 . Energy Cannon . | . . . Ballistic Gun 2 | 1 1 . Ballistic Cannon . | . . . Launcher 2 | . 2 . Special Weapon . | . . . Impact Weapon . | . . . Slashing Weapon . | . . . Piercing Weapon . | . . . Special Melee Weapon . | . . . Unidentified Prototypes . | . . . Corrupted Parts 1 | . 1 . System Corruption 2 | . 2 . Parts Lost 9 | . 4 5 Power 2 | . 1 1 Propulsion 5 | . 3 2 Utility . | . . . Weapon 2 | . . 2 Highest Loss Streak 3 | . 1 3 To Critical Strikes . | . . . Average Slot Usage (%) 80 | . 89 53 Engine 12 | . 13 10 Leg 7 | . 2 23 Wheel 15 | . 20 . Flight 2 | . 3 . Device 6 | . 8 . Storage 9 | . 12 . Energy Gun 9 | . 10 7 Ballistic Gun 9 | . 12 . Launcher 6 | . 4 10 Naked Turns . | . . . Heaviest Build 52 | 7 52 10 Greatest Support 20 | 20 20 20 Greatest Overweight (x) 6 | . 6 . Average Overweight (x) . | . 1 . Largest Inventory Capacity 20 | 5 20 5 Average Capacity 8 | 5 14 5 Most Carried 7 | 5 7 5 Average Carried 4 | 3 4 5 Final Capacity 5 | 5 5 5 Final Carried 5 | 4 5 5 Class Distribution -------------------- 94% | Mutant 5% | Scavenger-Mutant Dominant Class ---------------- Mutant | -10/Materials Mutant | -10/Mines Resources | -11 -10 -10 ----------- Run | Yrd Mat Min Matter Collected 793 | 288 384 121 Remotely . | . . . Salvage Created 802 | 82 502 218 Parts 81 | 6 46 29 Haulers Intercepted 1 | . 1 . Recyclers Shooed . | . . . Parts Field Recycled . | . . . Retrieved Matter . | . . . Parts Self-Destructed . | . . . Prevented . | . . . Kills | -11 -10 -10 ------- Run | Yrd Mat Min Combat Hostiles Destroyed 18 | 1 11 6 Guns 10 | 1 8 1 AOE 8 | . 3 5 Classes Destroyed 8 | 3 4 1 Worker 4 | 1 1 2 Builder 4 | . 2 2 Tunneler 3 | 1 1 1 Hauler 1 | . 1 . Recycler 2 | . . 2 Watcher 2 | . 2 . Swarmer 9 | . 3 6 Grunt 9 | 1 8 . Best Kill Streak 5 | 2 3 5 Combat Bots Only 3 | 1 3 3 Max Kills in Single Turn 4 | 1 2 4 Gunslinging . | . . . Exploded 2 | . 1 2 Melee . | . . . Uniques/NPCs Destroyed . | . . . Combat | -11 -10 -10 -------- Run | Yrd Mat Min Hostile Shots Fired 62 | 1 50 11 Missed 15 | 1 12 2 Damage Taken 909 | . 552 357 Core 266 | . 167 99 Absorbed by Shields . | . . . Core Remaining (%) 100 | 100 . . Volleys Fired 69 | 6 46 17 Largest 2 | 2 2 2 Hottest 70 | 70 70 70 Shots Fired 127 | 12 90 25 Gun 101 | 12 81 8 Cannon . | . . . Launcher 26 | . 9 17 Special . | . . . Kinetic 51 | 6 45 . Thermal 6 | 6 . . Explosive 26 | . 9 17 Electromagnetic 44 | . 36 8 Robot Hit Streak 7 | 4 7 2 Robot Miss Streak 3 | 2 3 3 Penetration Max . | . . . Secondary Targets . | . . . Shots Hit Robots 61 | 7 49 5 Core Hits 51 | 4 29 18 Critical Kills . | . . . Critical Parts Destroyed . | . . . Critical Strikes 1 | . . 1 Corrupt 1 | . . 1 Melee Attacks . | . . . Impact . | . . . Slashing . | . . . Piercing . | . . . Sneak Attacks . | . . . Combat Hostiles . | . . . Follow-up Attacks . | . . . Damage Inflicted 1684 | 92 982 610 Guns 671 | 92 543 36 Cannons . | . . . Explosions 1013 | . 439 574 Melee . | . . . Ramming . | . . . Kinetic 311 | 41 270 . Thermal 51 | 51 . . Explosive 1013 | . 439 574 Electromagnetic 309 | . 273 36 Impact . | . . . Slashing . | . . . Piercing . | . . . Highest Corruption 2 | . 2 2 Average Corruption 2 | . 2 2 Corruption Purged . | . . . Corruption Blocked . | . . . Effects 4 | . . 4 Message Errors 1 | . . 1 Matter Fused 2 | . . 2 Energy Discharges 1 | . . 1 Overload Shots . | . . . Overflow Damage 41 | . . 41 Projectiles . | . . . Explosions 41 | . . 41 Melee . | . . . Knockbacks . | . . . Impact . | . . . Kinetic . | . . . Secondary . | . . . Self-Inflicted Damage 207 | . . 207 Shots 9 | . . 9 Rammed . | . . . Targets Rammed . | . . . Kicked . | . . . Crushed . | . . . Highest Temperature 147 | 27 147 27 Average Temperature 31 | 11 47 11 Received Heat Transfer 243 | . 243 . Siege Activations . | . . . Robots Corrupted . | . . . Combat Hostiles . | . . . Parts Fried . | . . . Impact Corruptions . | . . . Robots Melted . | . . . Combat Hostiles . | . . . Parts Melted . | . . . Heat Transferred 148 | 148 . . Parts Sabotaged . | . . . Parts Stolen . | . . . Parts Stripped . | . . . Power Chain Reactions . | . . . Alert | -11 -10 -10 ------- Run | Yrd Mat Min Peak Influence 287 | 31 189 287 Initial 43 | . . 43 Average 60 | 9 70 184 Maximum Alert Level 1 | . . 1 Low Security (%) 93 | 100 100 55 Level 1 6 | . . 44 Level 2 . | . . . Level 3 . | . . . Level 4 . | . . . Level 5 . | . . . High Security . | . . . Max Security . | . . . Squads Dispatched 2 | . 2 . Investigation 2 | . 2 . Extermination . | . . . Reinforcement . | . . . Assault . | . . . Garrison . | . . . Intercept . | . . . Searches Triggered . | . . . Construction Impeded . | . . . Haulers Reinforced . | . . . Active Scanning Responses . | . . . Cargo Convoy Interrupts . | . . . Stealth | -11 -10 -10 --------- Run | Yrd Mat Min Distress Signals . | . . . Communications Jammed . | . . . Distress Signals . | . . . Times Spotted 24 | 1 17 6 Peak Tracking Total 3 | 1 3 3 Tactical Retreats . | . . . Traps | -11 -10 -10 ------- Run | Yrd Mat Min Traps Triggered 1 | . 1 . Indirectly . | . . . Trap Hack Attempts . | . . . Triggered . | . . . Disarmed . | . . . Reprogrammed . | . . . Reused . | . . . Traps Extracted . | . . . Installed . | . . . Triggered . | . . . Machines | -11 -10 -10 ---------- Run | Yrd Mat Min Machines Disabled 2 | . 2 . Max in Single Turn 1 | . 1 . Machines Repaired . | . . . Machines Dismantled . | . . . Machines Sabotaged . | . . . Overloaded Fab Kills . | . . . Hacking | -11 -10 -10 --------- Run | Yrd Mat Min Machines Accessed 6 | . 5 1 Terminals 5 | . 4 1 Fabricators . | . . . Repair Stations . | . . . Recycling Units 1 | . 1 . Scanalyzers . | . . . Garrison Access . | . . . Total Hacks 26 | . 23 3 Successful 19 | . 17 2 Failed 7 | . 6 1 Catastrophic 1 | . . 1 Database Lockouts . | . . . Manual 1 | . . 1 Terminals 20 | . 17 3 Fabricators . | . . . Repair Stations . | . . . Recycling Units 6 | . 6 . Scanalyzers . | . . . Garrison Access . | . . . Terminal Hacks 13 | . 11 2 Record 10 | . 8 2 Dispatch Records 1 | . 1 . Hauler Manifests 1 | . 1 . Zone Layout 1 | . 1 . Fabricator Hacks . | . . . Repair Station Hacks . | . . . Recycling Unit Hacks 6 | . 6 . Recycle Component 5 | . 5 . Retrieve Components 1 | . 1 . Scanalyzer . | . . . Garrison Access Hacks . | . . . Unauthorized Hacks . | . . . Terminals . | . . . Fabricators . | . . . Repair Stations . | . . . Recycling Units . | . . . Scanalyzers . | . . . Garrison Access . | . . . Data Cores Recovered . | . . . Used . | . . . Hacking Detections 5 | . 4 1 Full Trace Events 4 | . 3 1 Feedback Events . | . . . Feedback Blocked . | . . . Robot Schematics Acquired . | . . . Robots Built . | . . . Authchips . | . . . Time . | . . . Total Robot Build Rating . | . . . Part Schematics Acquired . | . . . Parts Built . | . . . Authchips . | . . . Time . | . . . Total Part Build Rating . | . . . Parts Repaired . | . . . Time . | . . . Parts Recycled 5 | . 5 . Recycled Matter . | . . . Retrieved Matter . | . . . Retrieved Components 8 | . 8 . Parts Scanalyzed . | . . . Part Schematics Acquired . | . . . Parts Damaged . | . . . Bothacking | -11 -10 -10 ------------ Run | Yrd Mat Min Used RIF Installer . | . . . Robots Hacked . | . . . Non-combat . | . . . Combat . | . . . Robot Hacks Applied . | . . . Relay Couplers Released . | . . . Fabnet Peak Effective % . | . . . Robots Rewired . | . . . Allies Hacked . | . . . Hacks Repelled . | . . . Allies | -11 -10 -10 -------- Run | Yrd Mat Min Total Allies . | . . . Largest Group . | . . . Highest-Rated Group . | . . . Highest-Rated Ally . | . . . Total Orders . | . . . Ally Attacks . | . . . Total Damage . | . . . Kills . | . . . Allies Corrupted . | . . . Allies Melted . | . . . Intel | -11 -10 -10 ------- Run | Yrd Mat Min Robot Analysis Total . | . . . Derelict Logs Recovered . | . . . Drone Launches . | . . . Drone Recoveries . | . . . Exploration | -11 -10 -10 ------------- Run | Yrd Mat Min Turns Passed 2251 | 961 979 311 Spaces Moved 1333 | 321 824 188 Core 27 | 27 . . Treads 6 | . 6 . Legs 259 | 7 64 188 Wheels 880 | 287 593 . Hover . | . . . Flight 161 | . 161 . Fastest Speed 37 | 50 37 120 Average Speed 94 | 78 94 120 Slowest Speed 517 | 120 517 120 Overloaded Moves . | . . . Propulsion Burnouts . | . . . Robots Hopped . | . . . Cave-ins Triggered 1 | . . 1 Exploration Rate (%) 46 | 22 86 30 Regions Visited 2 Branch Regions 1 Pre-discovered Areas . | . . . Known Exits Taken . | . . . Unknown Exits Taken 2 | 1 1 . Scrap Searched . | . . . Spaces Dug 27 | . . 27 Terrain Destroyed 191 | . 62 129 Melee . | . . . Projectile . | . . . AOE 191 | . 62 129 Terrain Rammed . | . . . Walls Destroyed . | . . . Machines Disabled . | . . . Actions | -11 -10 -10 --------- Run | Yrd Mat Min Total 2204 | 1017 939 248 Wait 725 | 675 6 44 Move 1330 | 320 823 187 Hop . | . . . Pick Up 30 | 9 21 . Fast Attach 4 | . 4 . Attach 13 | 5 8 . Detach 5 | . 5 . Swap 12 | 2 10 . Drop 16 | . 16 . Fire 69 | 6 46 17 Melee . | . . . Ram . | . . . Kick . | . . . Crush . | . . . Escape Stasis . | . . . Rewire . | . . . Trap . | . . . Miscellaneous . | . . . Route ------- -11/Scrapyard -10/Materials (discovered 4 exits: [*Mat x3] / *Min) -10/Mines (discovered 1 exit: [*Mat]) History --------- Turn | Location | Event 2 | -11/Scrapyard | Met Revision 17 96 | -11/Scrapyard | Discovered new exit (range 8) 962 | -11/Scrapyard | Entered Materials 963 | -10/Materials | Build established: Mutant 1100 | -10/Materials | Discovered new exit (range 15) 1164 | -10/Materials | Discovered new exit (range 14) 1505 | -10/Materials | Discovered new exit (range 9) 1748 | -10/Materials | Core integrity fell below 50% 1792 | -10/Materials | Discovered new exit (range 11) 1941 | -10/Materials | Entered Mines 1994 | -10/Mines | Discovered new exit (range 5) 2112 | -10/Mines | Core integrity fell below 20% 2203 | -10/Mines | Lost 3 parts (1p1n1w) 2252 | -10/Mines | Crushed by falling debris 2252 | -10/Mines | Smashed by cave-in Last Messages --------------- 02221_ U-05 Engineer builds a Wall. 02222_ The unstable cave ceiling collapses. 02222_ U-05 Engineer lays Concrete. 02223_ U-05 Engineer builds a Wall. 02224_ K-01 Serf collects debris. 02225_ U-05 Engineer lays Concrete. 02226_ U-05 Engineer builds a Wall. 02228_ K-01 Serf collects debris. 02230_ U-05 Engineer builds a Wall. 02232_ K-01 Serf collects debris. 02249_ The unstable cave ceiling collapses. 02249_ K-01 Serf crushed by falling debris. 02249_ K-01 Serf destroyed. 02249_ Med. Matter Pod crushed. 02252_ The unstable cave ceiling collapses. 02252_ Crushed by falling debris. [Achievement: Unlikely Earthworm] 02252_ Aluminum Leg destroyed. 02252_ System corrupted by crushing effect (+2). [Achievement: First Step to Greatness] Map ----- +----------------------------------------------------+ | ?????????????????????????????????????????????????? | | ?????????????????????????????????????????????????? | | ?????????????????????????????????????????????????? | | ?????????????????????????????????????????????????? | | ?????????????????????????????????????????????????? | | ?????????????????????????????????????????????????? | | ?????????????????????????????????????????????????? | | ?????????????????????????????????????????????????? | | ?????????????????????????????????????????????????? | | ?????????????????????????????????????????????????? | | ?????????????????????????????????????????????????? | | ?????????????????????????????????????????????????? | | ?????????????????#???????????????????????????????? | | ????????????????? #??????????????????????????????? | | ????????????????? #?????????????????????????????? | | ????????????????? ?????????????????????????????? | | ????????????????? ?????????????????????????????? | | ?????????????????# ?????????????????????????????? | | ?????????????????# #?????????????????????????????? | | ?????????????????# #?######??????????????????????? | | ??????????????#### ### ## ##?????????????????????? | | ?????????######## ## #?????????????????????? | | ?????????# !# #?????????????????????? | | ?????????????##### ####### #?????????????????????? | | ??????????????# # ###?????????????????????? | | ??????????????# # ## # @ #?????????????????????? | | ??????????????##### # # ##?????????????????????? | | ???????????? ### ####??????????????????????? | | ????????? #### ### #?????????????????????????? | | ????????? ????# #?# #?????????????????????????? | | ???????? ?????# ### ######????????????????????? | | ??????? ??????# # #????????????????????? | | ??????? ???????### ###### #????????????????????? | | ??????? ??????????? #????# #????????????????????? | | ??????? ???????????# #????# #????????????????????? | | ???????????????????# #????# #????????????????????? | | ???????????????????# #????# #????????????????????? | | ??????????####?????# #????# #????????????????????? | | ?????????## ####### #????# ####?????????????????? | | ????###### # # #### # ##### !|!#????????? | | ##?### ## # ## = % * ! #????????? | | ##### # ## == #????????? | | ### # ! #### ]##????????? | | < ## # #*[ #??????#?????????? | | ## ###### #????????????????? | | #????# * #????????????????? | | ####????# #????????????????? | | ## ## #???????### ##????????????????? | | ## ## ## ##??????????# #?????????????????? | | ## #### #?????#?????? ?????????????????? | +----------------------------------------------------+ Best States ------------- Heat Dissipation 25 Energy Generation 10 Energy Capacity 250 Matter Stores 307 Matter Capacity 600 Sight Range 16 Terrain Scan Range 14 Terrain Scan Density 10 Evasion (%) 62 Recoil Reduction 1 Item Schematics ----------------- None Robot Schematics ------------------ None Fabricated ------------ Nothing Alien Tech Used ----------------- None Achievements -------------- First Step to Greatness Librarian Loot Pinata One Hack Too Far Shopping List Unlikely Earthworm Challenges ------------ None Game ------ Seed AlloySubatomicSubcomponent Manual? 0 Play Time 00:31:56 Cumulative 0.4 hours Start 2024.04.12 @ 23:14:54 End 2024.04.12 @ 23:45:36 Sessions 1 Manual Loads 0 Difficulty Rogue Special Mode None Game No. 1 Rogue 1 Adventurer 0 Explorer 0 Win Type - Total 0 Types 0/0/0/0/0/0/0/0/0 Lore% 1 Gallery% 1 Achievement% 2 Wizard Run 0 Options --------- Layout 1 ASCII 0 Keyboard 0 Movement Arrows Keybinds 0 Fullscreen 2 Font 32/SmallcapsGlow Map View 50x35 Zoom Use 0% Tactical HUD 1 Map Filters NONE Filters NONE Steam 1 RUN: a39336b3-daf2-4840-adb7-bb3c03aadac7